[Event "Live Chess"]
[Site "Chess.com"]
[Date "2024.06.02"]
[Round "-"]
[White "Dhaydon19"]
[Black "Tatarinov_Maxim"]
[Result "1/2-1/2"]
[WhiteElo "2651"]
[BlackElo "2284"]
[TimeControl "300"]
[EndTime "0:30:25 PDT"]
[Termination "Game drawn by repetition"]

1. d4 {[%clk 0:04:58.4]} 1... Nf6 {[%clk 0:04:58]} 2. Nf3 {[%clk 0:04:57.8]}
2... g6 {[%clk 0:04:57.1]} 3. g3 {[%clk 0:04:56.7]} 3... Bg7 {[%clk 0:04:56.5]}
4. Bg2 {[%clk 0:04:48.9]} 4... O-O {[%clk 0:04:55.4]} 5. O-O {[%clk 0:04:48.6]}
5... c5 {[%clk 0:04:53.5]} 6. c3 {[%clk 0:04:47.8]} 6... Qc7 {[%clk 0:04:51.8]}
7. Bf4 {[%clk 0:04:46]} 7... d6 {[%clk 0:04:51]} 8. Nbd2 {[%clk 0:04:43.3]} 8...
b6 {[%clk 0:04:50.4]} 9. dxc5 {[%clk 0:04:37.2]} 9... bxc5 {[%clk 0:04:49.2]}
10. Nc4 {[%clk 0:04:36.2]} 10... Bb7 {[%clk 0:04:47.8]} 11. Nxd6 {[%clk
0:04:33.9]} 11... exd6 {[%clk 0:04:46.6]} 12. Bxd6 {[%clk 0:04:33.1]} 12... Qb6
{[%clk 0:04:46.1]} 13. Bxf8 {[%clk 0:04:32.2]} 13... Bxf8 {[%clk 0:04:44.2]} 14.
Qc2 {[%clk 0:04:27.9]} 14... Nc6 {[%clk 0:04:33.6]} 15. Rad1 {[%clk 0:04:19.8]}
15... Re8 {[%clk 0:04:31.7]} 16. b3 {[%clk 0:04:17.1]} 16... Ba6 {[%clk
0:04:17]} 17. Rfe1 {[%clk 0:04:10.7]} 17... Ne4 {[%clk 0:03:57.2]} 18. e3 {[%clk
0:03:57.4]} 18... Bg7 {[%clk 0:03:49.3]} 19. Nd2 {[%clk 0:03:52.9]} 19... Nxc3
{[%clk 0:03:45]} 20. Nc4 {[%clk 0:03:49.1]} 20... Bxc4 {[%clk 0:03:40.1]} 21.
bxc4 {[%clk 0:03:48.1]} 21... Nxd1 {[%clk 0:03:38.8]} 22. Rxd1 {[%clk
0:03:47.2]} 22... Ne5 {[%clk 0:03:26.7]} 23. Bd5 {[%clk 0:03:43.9]} 23... Qc7
{[%clk 0:03:06]} 24. Kg2 {[%clk 0:03:40.8]} 24... Ng4 {[%clk 0:02:57.3]} 25. Rb1
{[%clk 0:03:34.4]} 25... Rb8 {[%clk 0:02:48.8]} 26. Rxb8+ {[%clk 0:03:31.8]}
26... Qxb8 {[%clk 0:02:48.7]} 27. h3 {[%clk 0:03:22.6]} 27... Nf6 {[%clk
0:02:36.7]} 28. Bf3 {[%clk 0:03:21.3]} 28... h5 {[%clk 0:02:27.1]} 29. g4 {[%clk
0:03:15.7]} 29... hxg4 {[%clk 0:02:25.1]} 30. hxg4 {[%clk 0:03:15.3]} 30... Qe5
{[%clk 0:02:15.5]} 31. Qd3 {[%clk 0:03:12.3]} 31... Qe7 {[%clk 0:02:10]} 32. a4
{[%clk 0:03:08]} 32... Nd7 {[%clk 0:02:05.9]} 33. Bd5 {[%clk 0:03:05.7]} 33...
Ne5 {[%clk 0:02:01]} 34. Qe4 {[%clk 0:03:02.8]} 34... Qd7 {[%clk 0:01:49.5]} 35.
Kg3 {[%clk 0:03:00.2]} 35... Qd6 {[%clk 0:01:24.8]} 36. f4 {[%clk 0:02:56.1]}
36... Kf8 {[%clk 0:00:58.3]} 37. fxe5 {[%clk 0:02:50.9]} 37... Qxe5+ {[%clk
0:00:57.7]} 38. Qxe5 {[%clk 0:02:48.3]} 38... Bxe5+ {[%clk 0:00:57.6]} 39. Kf3
{[%clk 0:02:47.5]} 39... Ke7 {[%clk 0:00:57.5]} 40. a5 {[%clk 0:02:45.3]} 40...
a6 {[%clk 0:00:53.1]} 41. Bb7 {[%clk 0:02:43.1]} 41... Bc7 {[%clk 0:00:52.1]}
42. Bxa6 {[%clk 0:02:42.1]} 42... Bxa5 {[%clk 0:00:52]} 43. Ke4 {[%clk
0:02:41.1]} 43... Bd2 {[%clk 0:00:49.6]} 44. Kf4 {[%clk 0:02:36.9]} 44... f6
{[%clk 0:00:46.1]} 45. Bb7 {[%clk 0:02:35.6]} 45... g5+ {[%clk 0:00:42.9]} 46.
Kf3 {[%clk 0:02:33.5]} 46... Kd6 {[%clk 0:00:41.8]} 47. Bd5 {[%clk 0:02:31.9]}
47... Ke5 {[%clk 0:00:40.9]} 48. Be4 {[%clk 0:02:29]} 48... Bc3 {[%clk
0:00:39.1]} 49. Bf5 {[%clk 0:02:28.4]} 49... Bd2 {[%clk 0:00:38.2]} 50. Ke2
{[%clk 0:02:28.1]} 50... Bc1 {[%clk 0:00:37.7]} 51. Kd3 {[%clk 0:02:27.5]} 51...
Bb2 {[%clk 0:00:35.4]} 52. Kd2 {[%clk 0:02:25.8]} 52... Ba3 {[%clk 0:00:34.3]}
53. Kc2 {[%clk 0:02:24.4]} 53... Bb4 {[%clk 0:00:33.6]} 54. Bd3 {[%clk
0:02:22.3]} 54... Be1 {[%clk 0:00:32.3]} 55. Kd1 {[%clk 0:02:20.8]} 55... Bb4
{[%clk 0:00:30.2]} 56. Ke2 {[%clk 0:02:20.2]} 56... Bc3 {[%clk 0:00:29.3]} 57.
Bf5 {[%clk 0:02:19.8]} 57... Bb4 {[%clk 0:00:28.5]} 58. Kd3 {[%clk 0:02:19.2]}
58... Be1 {[%clk 0:00:27.4]} 59. e4 {[%clk 0:02:18.4]} 59... Bb4 {[%clk
0:00:26.3]} 60. Kc2 {[%clk 0:02:18.1]} 60... Be1 {[%clk 0:00:25.2]} 61. Kb3
{[%clk 0:02:17.8]} 61... Bb4 {[%clk 0:00:24.9]} 62. Ka4 {[%clk 0:02:17.4]} 62...
Kd4 {[%clk 0:00:23.7]} 63. Kb5 {[%clk 0:02:17]} 63... Ke5 {[%clk 0:00:23.3]} 64.
Bd7 {[%clk 0:02:15.3]} 64... Kd4 {[%clk 0:00:21.8]} 65. Bf5 {[%clk 0:02:14.8]}
65... Ke5 {[%clk 0:00:21.3]} 66. Kc6 {[%clk 0:02:14]} 66... Ba3 {[%clk
0:00:18.8]} 67. Kd7 {[%clk 0:02:12.7]} 67... Bb4 {[%clk 0:00:18.7]} 68. Ke7
{[%clk 0:02:11.9]} 68... Ba3 {[%clk 0:00:18]} 69. Kd8 {[%clk 0:02:11.4]} 69...
Bb4 {[%clk 0:00:17.9]} 70. Kc7 {[%clk 0:02:11.1]} 70... Ba3 {[%clk 0:00:17.3]}
71. Kb6 {[%clk 0:02:10.7]} 71... Bb4 {[%clk 0:00:17.2]} 72. Kb5 {[%clk
0:02:10.4]} 72... Kd4 {[%clk 0:00:15.8]} 73. Ka4 {[%clk 0:02:10]} 73... Ke5
{[%clk 0:00:15.1]} 74. Kb3 {[%clk 0:02:08.8]} 74... Kd4 {[%clk 0:00:14.5]} 75.
Be6 {[%clk 0:02:07.6]} 75... Ke5 {[%clk 0:00:14.4]} 76. Bd5 {[%clk 0:02:05.5]}
76... Ba5 {[%clk 0:00:13.5]} 77. Bb7 {[%clk 0:02:04.4]} 77... Bb4 {[%clk
0:00:13.4]} 78. Ka4 {[%clk 0:02:02.4]} 78... Bc3 {[%clk 0:00:12.4]} 79. Kb5
{[%clk 0:02:01.6]} 79... Bb4 {[%clk 0:00:12.3]} 80. Kc6 {[%clk 0:01:59.6]} 80...
Ba3 {[%clk 0:00:11.6]} 81. Kd7 {[%clk 0:01:58]} 81... Bb4 {[%clk 0:00:11.5]} 82.
Ke7 {[%clk 0:01:57]} 82... Ba3 {[%clk 0:00:10.9]} 83. Kf7 {[%clk 0:01:56.2]}
83... Bb4 {[%clk 0:00:10.8]} 84. Kg6 {[%clk 0:01:55.8]} 84... Ba3 {[%clk
0:00:09.4]} 85. Bc8 {[%clk 0:01:55.4]} 85... Bb4 {[%clk 0:00:09.3]} 86. Bf5
{[%clk 0:01:54.7]} 86... Ba3 {[%clk 0:00:09.2]} 87. Kf7 {[%clk 0:01:54.3]} 87...
Bb4 {[%clk 0:00:09.1]} 88. Ke7 {[%clk 0:01:53.5]} 88... Ba3 {[%clk 0:00:09]} 89.
Kd7 {[%clk 0:01:53.2]} 89... Bb4 {[%clk 0:00:08.9]} 90. Kc6 {[%clk 0:01:53]}
90... Ba3 {[%clk 0:00:08.8]} 91. Kb5 {[%clk 0:01:52.7]} 91... Bb4 {[%clk
0:00:08.7]} 1/2-1/2

[Event "Live Chess"]
[Site "Chess.com"]
[Date "2024.06.02"]
[Round "-"]
[White "MaximKovalenko83"]
[Black "willc-h99"]
[Result "0-1"]
[WhiteElo "2147"]
[BlackElo "2628"]
[TimeControl "300"]
[EndTime "0:30:37 PDT"]
[Termination "willc-h99 won by resignation"]

1. d4 {[%clk 0:04:57.7]} 1... Nf6 {[%clk 0:04:58.7]} 2. Nf3 {[%clk 0:04:55.6]}
2... b6 {[%clk 0:04:54.9]} 3. c4 {[%clk 0:04:54.5]} 3... Bb7 {[%clk 0:04:53.1]}
4. Nc3 {[%clk 0:04:54.4]} 4... e6 {[%clk 0:04:51.1]} 5. Bg5 {[%clk 0:04:54.3]}
5... Bb4 {[%clk 0:04:48.8]} 6. e3 {[%clk 0:04:54.2]} 6... h6 {[%clk 0:04:47.5]}
7. Be2 {[%clk 0:04:54.1]} 7... hxg5 {[%clk 0:04:46.4]} 8. O-O {[%clk 0:04:45]}
8... Bxc3 {[%clk 0:04:38.7]} 9. bxc3 {[%clk 0:04:43.6]} 9... Ne4 {[%clk
0:04:37.7]} 10. Qc2 {[%clk 0:04:40.7]} 10... Qf6 {[%clk 0:04:35.4]} 11. Rad1
{[%clk 0:04:29.1]} 11... g4 {[%clk 0:04:28.5]} 12. Ne5 {[%clk 0:04:27.5]} 12...
Qh4 {[%clk 0:04:14.4]} 13. Nxg4 {[%clk 0:04:02.5]} 13... f5 {[%clk 0:04:13.2]}
14. g3 {[%clk 0:04:01]} 14... Qh3 {[%clk 0:04:04.6]} 15. f3 {[%clk 0:03:49.5]}
15... fxg4 {[%clk 0:04:00.2]} 16. Bd3 {[%clk 0:03:45.8]} 16... gxf3 {[%clk
0:03:28.3]} 0-1

[Event "Live Chess"]
[Site "Chess.com"]
[Date "2024.06.02"]
[Round "-"]
[White "MagnersCarlsberg2870"]
[Black "Cimon"]
[Result "1-0"]
[WhiteElo "1820"]
[BlackElo "1795"]
[TimeControl "300"]
[EndTime "0:30:46 PDT"]
[Termination "MagnersCarlsberg2870 won by resignation"]

1. d4 {[%clk 0:04:57]} 1... d5 {[%clk 0:04:57.5]} 2. e3 {[%clk 0:04:55.5]} 2...
Nf6 {[%clk 0:04:55.3]} 3. Bd3 {[%clk 0:04:54.4]} 3... c5 {[%clk 0:04:54]} 4. c3
{[%clk 0:04:53.1]} 4... e6 {[%clk 0:04:52.4]} 5. Nd2 {[%clk 0:04:51.8]} 5... Nc6
{[%clk 0:04:50.5]} 6. f4 {[%clk 0:04:50.8]} 6... Be7 {[%clk 0:04:46.7]} 7. Ngf3
{[%clk 0:04:49.9]} 7... b6 {[%clk 0:04:39.1]} 8. Qe2 {[%clk 0:04:48]} 8... Bb7
{[%clk 0:04:34.7]} 9. O-O {[%clk 0:04:46.9]} 9... O-O {[%clk 0:04:30.1]} 10. Ne5
{[%clk 0:04:45.9]} 10... cxd4 {[%clk 0:04:27.1]} 11. exd4 {[%clk 0:04:44.8]}
11... Qc8 {[%clk 0:04:12]} 12. Rf3 {[%clk 0:04:43.3]} 12... a5 {[%clk
0:04:08.7]} 13. Rh3 {[%clk 0:04:41.7]} 13... Ba6 {[%clk 0:04:01.5]} 14. g4
{[%clk 0:04:37.7]} 14... Bxd3 {[%clk 0:03:59.3]} 15. Qxd3 {[%clk 0:04:36.3]}
15... g6 {[%clk 0:03:54.1]} 16. g5 {[%clk 0:04:32.5]} 16... Ne8 {[%clk
0:03:41.5]} 17. Ng4 {[%clk 0:04:28]} 17... Qc7 {[%clk 0:03:28.2]} 18. Qg3 {[%clk
0:04:26.3]} 18... Ng7 {[%clk 0:03:22.1]} 19. Nf6+ {[%clk 0:04:21]} 19... Bxf6
{[%clk 0:03:18.9]} 20. gxf6 {[%clk 0:04:19.9]} 20... Nf5 {[%clk 0:03:14.5]} 21.
Qg5 {[%clk 0:04:10.9]} 21... b5 {[%clk 0:02:05.6]} 22. Nf1 {[%clk 0:04:07.4]}
22... h6 {[%clk 0:01:58]} 23. Rxh6 {[%clk 0:04:02.4]} 23... Ncxd4 {[%clk
0:01:45.5]} 24. cxd4 {[%clk 0:03:40.4]} 24... Qc2 {[%clk 0:01:40.5]} 25. Ng3
{[%clk 0:03:33]} 25... Qd1+ {[%clk 0:01:35.9]} 26. Kg2 {[%clk 0:03:22.5]} 26...
Qc2+ {[%clk 0:01:24.8]} 27. Kh3 {[%clk 0:03:19.2]} 27... Nxg3 {[%clk 0:01:08.9]}
28. Rh8+ {[%clk 0:03:15.3]} 1-0

[Event "Live Chess"]
[Site "Chess.com"]
[Date "2024.06.02"]
[Round "-"]
[White "Ferrarifan27"]
[Black "Greenbecker"]
[Result "1/2-1/2"]
[WhiteElo "2113"]
[BlackElo "1779"]
[TimeControl "300"]
[EndTime "0:31:03 PDT"]
[Termination "Game drawn by repetition"]

1. e4 {[%clk 0:04:55.4]} 1... Nc6 {[%clk 0:04:57.8]} 2. d4 {[%clk 0:04:48.5]}
2... d5 {[%clk 0:04:56.3]} 3. e5 {[%clk 0:04:44.1]} 3... Bf5 {[%clk 0:04:54.3]}
4. h4 {[%clk 0:04:41.8]} 4... h5 {[%clk 0:04:36.1]} 5. Bg5 {[%clk 0:04:38.9]}
5... f6 {[%clk 0:04:33.8]} 6. exf6 {[%clk 0:04:37.3]} 6... exf6 {[%clk
0:04:32.1]} 7. Bf4 {[%clk 0:04:36.4]} 7... Bd6 {[%clk 0:04:29.5]} 8. Bxd6 {[%clk
0:04:32.2]} 8... Qxd6 {[%clk 0:04:27.9]} 9. Nf3 {[%clk 0:04:31.3]} 9... O-O-O
{[%clk 0:04:25.1]} 10. Be2 {[%clk 0:04:28.5]} 10... Re8 {[%clk 0:04:15.2]} 11.
O-O {[%clk 0:04:26.7]} 11... g5 {[%clk 0:04:12.8]} 12. hxg5 {[%clk 0:04:24.4]}
12... fxg5 {[%clk 0:04:11.8]} 13. Nxg5 {[%clk 0:04:23.5]} 13... Qg6 {[%clk
0:04:01.7]} 14. Nf3 {[%clk 0:04:22.3]} 14... h4 {[%clk 0:03:53.3]} 15. Nc3
{[%clk 0:04:14.4]} 15... h3 {[%clk 0:03:30.4]} 16. g3 {[%clk 0:04:12.6]} 16...
Nf6 {[%clk 0:03:16.2]} 17. Qd2 {[%clk 0:03:58.3]} 17... Ne4 {[%clk 0:03:14.3]}
18. Nxe4 {[%clk 0:03:55]} 18... dxe4 {[%clk 0:03:05.8]} 19. Nh2 {[%clk
0:03:50.2]} 19... e3 {[%clk 0:02:58.9]} 20. Qc3 {[%clk 0:03:47]} 20... exf2+
{[%clk 0:02:36.3]} 21. Rxf2 {[%clk 0:03:45]} 21... Rhg8 {[%clk 0:02:07.9]} 22.
g4 {[%clk 0:03:35.5]} 22... Rxe2 {[%clk 0:01:57.8]} 23. Rxe2 {[%clk 0:03:24.9]}
23... Bxg4 {[%clk 0:01:54.9]} 24. Nxg4 {[%clk 0:02:49.4]} 24... Qxg4+ {[%clk
0:01:52.5]} 25. Kf2 {[%clk 0:02:48]} 25... Qg2+ {[%clk 0:01:46.3]} 26. Ke1
{[%clk 0:02:46.9]} 26... Qg1+ {[%clk 0:01:33.2]} 27. Kd2 {[%clk 0:02:45.6]}
27... Qxa1 {[%clk 0:01:30.2]} 28. Qxh3+ {[%clk 0:02:34.7]} 28... Kb8 {[%clk
0:01:26.2]} 29. Qh5 {[%clk 0:02:24.1]} 29... Qxb2 {[%clk 0:01:17.1]} 30. Re8+
{[%clk 0:02:22.6]} 30... Nd8 {[%clk 0:01:13.1]} 31. Rxg8 {[%clk 0:02:21.3]}
31... Qxd4+ {[%clk 0:01:10.6]} 32. Kc1 {[%clk 0:02:11.8]} 32... Qa1+ {[%clk
0:01:05.1]} 33. Kd2 {[%clk 0:02:10.5]} 33... Qd4+ {[%clk 0:01:03.4]} 34. Ke1
{[%clk 0:01:54.3]} 34... Qc3+ {[%clk 0:00:59.9]} 35. Kd1 {[%clk 0:01:45.3]}
35... Qd4+ {[%clk 0:00:57.2]} 36. Kc1 {[%clk 0:01:39.9]} 36... Qa1+ {[%clk
0:00:53.7]} 37. Kd2 {[%clk 0:01:38.8]} 37... Qd4+ {[%clk 0:00:52.3]} 1/2-1/2

[Event "Live Chess"]
[Site "Chess.com"]
[Date "2024.06.02"]
[Round "-"]
[White "CheckThis4"]
[Black "Victor_Bondar"]
[Result "1-0"]
[WhiteElo "2693"]
[BlackElo "1460"]
[TimeControl "300"]
[EndTime "0:31:03 PDT"]
[Termination "CheckThis4 won by checkmate"]

1. d4 {[%clk 0:04:58.5]} 1... Nf6 {[%clk 0:04:56.1]} 2. Nc3 {[%clk 0:04:58.4]}
2... e6 {[%clk 0:04:52.5]} 3. e4 {[%clk 0:04:57.1]} 3... c5 {[%clk 0:04:51.3]}
4. d5 {[%clk 0:04:55.8]} 4... exd5 {[%clk 0:04:48.2]} 5. e5 {[%clk 0:04:54.1]}
5... Ne4 {[%clk 0:04:47.1]} 6. Nxd5 {[%clk 0:04:49.2]} 6... Nc6 {[%clk
0:04:40.1]} 7. Nf3 {[%clk 0:04:47.6]} 7... h6 {[%clk 0:04:20.6]} 8. Bc4 {[%clk
0:04:33.9]} 8... d6 {[%clk 0:04:14.7]} 9. O-O {[%clk 0:04:27.9]} 9... Bg4 {[%clk
0:04:08.3]} 10. Re1 {[%clk 0:04:24.4]} 10... Ng5 {[%clk 0:04:04.1]} 11. exd6+
{[%clk 0:04:20.2]} 11... Kd7 {[%clk 0:03:56.7]} 12. Bxg5 {[%clk 0:04:03.2]}
12... hxg5 {[%clk 0:03:45.7]} 13. Ne7 {[%clk 0:03:57.3]} 13... Nd4 {[%clk
0:03:07.2]} 14. Ne5+ {[%clk 0:03:46.9]} 14... Kxd6 {[%clk 0:02:47.1]} 15. Nxf7+
{[%clk 0:03:45]} 15... Kc7 {[%clk 0:02:42]} 16. Qxg4 {[%clk 0:03:41]} 16... Qd7
{[%clk 0:02:28.3]} 17. Nd5+ {[%clk 0:03:18.3]} 17... Kc8 {[%clk 0:02:16.2]} 18.
Re8# {[%clk 0:03:13.3]} 1-0

[Event "Live Chess"]
[Site "Chess.com"]
[Date "2024.06.02"]
[Round "-"]
[White "KeithArkell"]
[Black "Crowded_House"]
[Result "1-0"]
[WhiteElo "2408"]
[BlackElo "1675"]
[TimeControl "300"]
[EndTime "0:31:36 PDT"]
[Termination "KeithArkell won by checkmate"]

1. d4 {[%clk 0:04:58.2]} 1... e6 {[%clk 0:04:57.8]} 2. Nf3 {[%clk 0:04:57.6]}
2... d5 {[%clk 0:04:55.8]} 3. c4 {[%clk 0:04:56.7]} 3... dxc4 {[%clk 0:04:50.9]}
4. e3 {[%clk 0:04:55.5]} 4... b5 {[%clk 0:04:46.2]} 5. a4 {[%clk 0:04:50.9]}
5... Bd7 {[%clk 0:04:37.1]} 6. axb5 {[%clk 0:04:48.9]} 6... Bxb5 {[%clk
0:04:34.9]} 7. Nbd2 {[%clk 0:04:48]} 7... Bb4 {[%clk 0:04:27.8]} 8. Be2 {[%clk
0:04:44.3]} 8... Nf6 {[%clk 0:04:21]} 9. O-O {[%clk 0:04:43.4]} 9... Bxd2 {[%clk
0:04:12.9]} 10. Nxd2 {[%clk 0:04:41.5]} 10... O-O {[%clk 0:04:10.9]} 11. Bxc4
{[%clk 0:04:39.6]} 11... Bxc4 {[%clk 0:04:10.2]} 12. Nxc4 {[%clk 0:04:38.9]}
12... Qd5 {[%clk 0:04:03.3]} 13. b3 {[%clk 0:04:34.9]} 13... Nbd7 {[%clk
0:03:55.5]} 14. Ba3 {[%clk 0:04:30.3]} 14... Rfb8 {[%clk 0:03:49.3]} 15. Qc2
{[%clk 0:04:28.7]} 15... Nb6 {[%clk 0:03:46.9]} 16. Rfc1 {[%clk 0:04:22.4]}
16... Qe4 {[%clk 0:03:37.3]} 17. Qxe4 {[%clk 0:04:20.9]} 17... Nxe4 {[%clk
0:03:35.8]} 18. Ne5 {[%clk 0:04:18.4]} 18... Rc8 {[%clk 0:03:20.7]} 19. Rc6
{[%clk 0:04:14.2]} 19... Nf6 {[%clk 0:03:10.7]} 20. Rac1 {[%clk 0:04:12.2]}
20... Ne8 {[%clk 0:03:03.4]} 21. g4 {[%clk 0:04:08.7]} 21... h6 {[%clk
0:02:55.3]} 22. Kg2 {[%clk 0:04:06.9]} 22... Nd5 {[%clk 0:02:46.9]} 23. Kg3
{[%clk 0:03:57.7]} 23... Nb6 {[%clk 0:02:41.7]} 24. Bc5 {[%clk 0:03:50.4]} 24...
Nd5 {[%clk 0:02:34.1]} 25. Ra1 {[%clk 0:03:45.4]} 25... a5 {[%clk 0:02:26.8]}
26. Nc4 {[%clk 0:03:33.5]} 26... Rcb8 {[%clk 0:02:23.3]} 27. Rxa5 {[%clk
0:03:32.3]} 27... Rxa5 {[%clk 0:02:21.6]} 28. Nxa5 {[%clk 0:03:31.4]} 28... Rb5
{[%clk 0:02:12.8]} 29. Ra6 {[%clk 0:03:30.5]} 29... Nef6 {[%clk 0:01:47.4]} 30.
Kf3 {[%clk 0:03:29.6]} 30... Nd7 {[%clk 0:01:45.9]} 31. e4 {[%clk 0:03:13.4]}
31... Nb4 {[%clk 0:01:41.8]} 32. Ra8+ {[%clk 0:03:11.7]} 32... Kh7 {[%clk
0:01:39.8]} 33. Bxb4 {[%clk 0:03:09.2]} 33... Rxb4 {[%clk 0:01:38.8]} 34. Ra7
{[%clk 0:03:07.2]} 34... Rxd4 {[%clk 0:01:35.5]} 35. Rxc7 {[%clk 0:03:05.9]}
35... Ne5+ {[%clk 0:01:32.1]} 36. Ke3 {[%clk 0:03:05]} 36... Rb4 {[%clk
0:01:28.3]} 37. h3 {[%clk 0:03:00.8]} 37... Kg6 {[%clk 0:01:22.9]} 38. f4 {[%clk
0:02:59.3]} 38... Nxg4+ {[%clk 0:01:19.3]} 39. hxg4 {[%clk 0:02:57.8]} 39... Rb5
{[%clk 0:01:14.1]} 40. Ra7 {[%clk 0:02:55.4]} 40... f6 {[%clk 0:01:10.1]} 41.
f5+ {[%clk 0:02:53.9]} 41... exf5 {[%clk 0:01:05.6]} 42. gxf5+ {[%clk
0:02:50.6]} 42... Kh7 {[%clk 0:01:03.8]} 43. Kf4 {[%clk 0:02:49.3]} 43... Rb4
{[%clk 0:00:58.9]} 44. Rd7 {[%clk 0:02:40.5]} 44... h5 {[%clk 0:00:57.8]} 45.
Re7 {[%clk 0:02:33]} 45... Rb5 {[%clk 0:00:54.9]} 46. Nc4 {[%clk 0:02:27.2]}
46... Rxb3 {[%clk 0:00:53.5]} 47. Nd6 {[%clk 0:02:22.7]} 47... h4 {[%clk
0:00:51.2]} 48. Ne8 {[%clk 0:02:20.6]} 48... h3 {[%clk 0:00:48.5]} 49. Rxg7+
{[%clk 0:02:19.7]} 49... Kh6 {[%clk 0:00:47.5]} 50. Rg1 {[%clk 0:02:18.7]} 50...
h2 {[%clk 0:00:42.9]} 51. Rh1 {[%clk 0:02:17.9]} 51... Rb2 {[%clk 0:00:41.9]}
52. Nxf6 {[%clk 0:02:16.8]} 52... Kg7 {[%clk 0:00:39.6]} 53. Ng4 {[%clk
0:02:15.4]} 53... Kf7 {[%clk 0:00:35.2]} 54. Rxh2 {[%clk 0:02:14.4]} 54... Rb6
{[%clk 0:00:32.2]} 55. Rh7+ {[%clk 0:02:12.9]} 55... Kg8 {[%clk 0:00:30.3]} 56.
Rc7 {[%clk 0:02:11]} 56... Rb1 {[%clk 0:00:29.9]} 57. Kg5 {[%clk 0:02:10.1]}
57... Re1 {[%clk 0:00:28.5]} 58. Kg6 {[%clk 0:02:08.8]} 58... Rg1 {[%clk
0:00:27.3]} 59. Rc8# {[%clk 0:02:08]} 1-0

[Event "Live Chess"]
[Site "Chess.com"]
[Date "2024.06.02"]
[Round "-"]
[White "JohanKjeldahl"]
[Black "wadsy27"]
[Result "0-1"]
[WhiteElo "1871"]
[BlackElo "2582"]
[TimeControl "300"]
[EndTime "0:32:07 PDT"]
[Termination "wadsy27 won by resignation"]

1. c4 {[%clk 0:04:55.9]} 1... f5 {[%clk 0:04:58.1]} 2. d4 {[%clk 0:04:53.6]}
2... Nf6 {[%clk 0:04:57.4]} 3. Nc3 {[%clk 0:04:52.4]} 3... d6 {[%clk 0:04:56]}
4. g3 {[%clk 0:04:50.4]} 4... g6 {[%clk 0:04:55.5]} 5. Bg2 {[%clk 0:04:41]} 5...
Bg7 {[%clk 0:04:54]} 6. e3 {[%clk 0:04:39.2]} 6... O-O {[%clk 0:04:53.4]} 7.
Nge2 {[%clk 0:04:38.6]} 7... c6 {[%clk 0:04:52.3]} 8. O-O {[%clk 0:04:37.5]}
8... a5 {[%clk 0:04:51.3]} 9. b3 {[%clk 0:04:36.5]} 9... Na6 {[%clk 0:04:49.3]}
10. Bb2 {[%clk 0:04:34.7]} 10... Qe8 {[%clk 0:04:47.8]} 11. a3 {[%clk
0:04:30.3]} 11... e5 {[%clk 0:04:46.3]} 12. dxe5 {[%clk 0:04:26.4]} 12... dxe5
{[%clk 0:04:45.4]} 13. Qc2 {[%clk 0:04:20.2]} 13... e4 {[%clk 0:04:38.8]} 14. h4
{[%clk 0:04:10.9]} 14... Ng4 {[%clk 0:04:36]} 15. Nf4 {[%clk 0:04:07.3]} 15...
Nc5 {[%clk 0:04:24.6]} 16. Rad1 {[%clk 0:04:00]} 16... Ne6 {[%clk 0:04:20.9]}
17. Nce2 {[%clk 0:03:56.4]} 17... Qf7 {[%clk 0:04:05.6]} 18. Bxg7 {[%clk
0:03:52.2]} 18... Qxg7 {[%clk 0:04:02.2]} 19. Rd6 {[%clk 0:03:44.2]} 19... Qe7
{[%clk 0:03:50.5]} 20. Rfd1 {[%clk 0:03:42.4]} 20... Ne5 {[%clk 0:03:40.5]} 21.
R6d2 {[%clk 0:03:27.2]} 21... Nxf4 {[%clk 0:03:31.9]} 22. exf4 {[%clk 0:03:16]}
22... Ng4 {[%clk 0:03:19.9]} 23. Qc3 {[%clk 0:03:03.9]} 23... Be6 {[%clk
0:03:18.9]} 24. Nd4 {[%clk 0:03:01.2]} 24... Bf7 {[%clk 0:03:14.1]} 25. Nc2
{[%clk 0:02:51.2]} 25... Rad8 {[%clk 0:03:11.1]} 26. Ne3 {[%clk 0:02:47.5]}
26... Nxe3 {[%clk 0:03:05.7]} 27. fxe3 {[%clk 0:02:45.2]} 27... Rxd2 {[%clk
0:03:04.5]} 28. Rxd2 {[%clk 0:02:36.6]} 28... Qxa3 {[%clk 0:03:01.5]} 29. Rd7
{[%clk 0:02:35.4]} 29... b5 {[%clk 0:02:55.7]} 30. Kh2 {[%clk 0:02:21.7]} 30...
h5 {[%clk 0:02:50.4]} 31. cxb5 {[%clk 0:02:16.5]} 31... cxb5 {[%clk 0:02:48.9]}
32. Rb7 {[%clk 0:01:50.2]} 32... b4 {[%clk 0:02:43.4]} 33. Qc7 {[%clk
0:01:41.5]} 33... Qxb3 {[%clk 0:02:38.4]} 34. Qxa5 {[%clk 0:01:38.2]} 34... Qxe3
{[%clk 0:02:37.4]} 35. Qxb4 {[%clk 0:01:34.9]} 35... Qd3 {[%clk 0:02:34.5]} 36.
Qe7 {[%clk 0:01:27]} 36... Qd5 {[%clk 0:02:25.3]} 37. Rd7 {[%clk 0:01:09.9]}
37... Qe6 {[%clk 0:02:24.1]} 38. Kg1 {[%clk 0:01:05.7]} 38... Qxe7 {[%clk
0:02:21.3]} 39. Rxe7 {[%clk 0:01:04.7]} 39... Rb8 {[%clk 0:02:19.4]} 40. Bf1
{[%clk 0:01:00.9]} 40... Rb2 {[%clk 0:02:16.3]} 41. Re5 {[%clk 0:00:54.4]} 41...
Kf8 {[%clk 0:02:12.9]} 42. Kh1 {[%clk 0:00:39.4]} 42... Rb3 {[%clk 0:02:07.7]}
43. Kg2 {[%clk 0:00:37.6]} 43... Rc3 {[%clk 0:02:06.9]} 44. Kf2 {[%clk 0:00:36]}
44... Bb3 {[%clk 0:02:05.3]} 45. Bb5 {[%clk 0:00:28.5]} 45... Bd1 {[%clk
0:02:01.5]} 46. Be2 {[%clk 0:00:24.2]} 46... Rc2 {[%clk 0:02:00.3]} 0-1

[Event "Live Chess"]
[Site "Chess.com"]
[Date "2024.06.02"]
[Round "-"]
[White "Ksenia_2013"]
[Black "AndrewBak1"]
[Result "0-1"]
[WhiteElo "946"]
[BlackElo "1878"]
[TimeControl "300"]
[EndTime "0:32:47 PDT"]
[Termination "AndrewBak1 won by checkmate"]

1. e4 {[%clk 0:04:56.7]} 1... c5 {[%clk 0:04:58.6]} 2. Bc4 {[%clk 0:04:54.9]}
2... e6 {[%clk 0:04:57.4]} 3. Nf3 {[%clk 0:04:53.3]} 3... d5 {[%clk 0:04:56.6]}
4. exd5 {[%clk 0:04:52.1]} 4... exd5 {[%clk 0:04:56.5]} 5. Bb3 {[%clk
0:04:45.2]} 5... b5 {[%clk 0:04:52.1]} 6. O-O {[%clk 0:04:43.4]} 6... c4 {[%clk
0:04:50.4]} 7. Bxc4 {[%clk 0:04:40.7]} 7... bxc4 {[%clk 0:04:48.9]} 8. Re1+
{[%clk 0:04:39.4]} 8... Be7 {[%clk 0:04:46.7]} 9. d4 {[%clk 0:04:29.3]} 9... Nf6
{[%clk 0:04:44.6]} 10. Bg5 {[%clk 0:04:25.7]} 10... O-O {[%clk 0:04:43.3]} 11.
Bxf6 {[%clk 0:04:16.7]} 11... Bxf6 {[%clk 0:04:43.2]} 12. Nc3 {[%clk 0:04:06.2]}
12... Nc6 {[%clk 0:04:38.3]} 13. b3 {[%clk 0:03:55.9]} 13... Bg4 {[%clk
0:04:35.7]} 14. bxc4 {[%clk 0:03:54.1]} 14... Bxd4 {[%clk 0:04:26.8]} 15. Qd3
{[%clk 0:03:42.6]} 15... Bxf3 {[%clk 0:04:17.4]} 16. Qxf3 {[%clk 0:03:39.3]}
16... Bxc3 {[%clk 0:04:16.3]} 17. Qxc3 {[%clk 0:03:37.4]} 17... dxc4 {[%clk
0:04:15.3]} 18. Qxc4 {[%clk 0:03:34.9]} 18... Rc8 {[%clk 0:04:14.4]} 19. Qg4
{[%clk 0:03:27.3]} 19... Qf6 {[%clk 0:04:07.9]} 20. Re3 {[%clk 0:03:23.6]} 20...
Qxa1+ {[%clk 0:04:04.7]} 21. Re1 {[%clk 0:03:16.3]} 21... Qxe1# {[%clk
0:04:03.4]} 0-1